bitfinex/quotes_BTCUSD_20251202
["timestamp","ask_amount","ask_price","bid_price","bid_amount"]
[1764710398531,0.009818,91279.0,91278.0,0.247801]
[1764710400291,0.009818,91279.0,91278.0,0.26224084]
[1764710402872,0.009818,91279.0,91278.0,0.27870319]
[1764710403092,0.009818,91279.0,91278.0,0.60170319]
[1764710403281,0.0002,91320.0,91278.0,0.60170319]
[1764710403282,0.0002,91320.0,91317.0,0.22996812]
[1764710403460,0.0002,91320.0,91319.0,0.24527247]
[1764710403870,0.0002,91320.0,91319.0,0.27151247]
[1764710404931,0.0002,91320.0,91319.0,0.24527247]
[1764710405554,0.0002,91320.0,91319.0,0.24627247]
[1764710405758,0.0002,91320.0,91319.0,0.24527247]
[1764710406391,0.0002,91320.0,91319.0,0.22938247]
[1764710407889,0.0002,91320.0,91319.0,0.27284247]
[1764710409730,0.0002,91320.0,91317.0,0.01095086]
[1764710409731,0.01858,91320.0,91317.0,0.01095086]
[1764710409929,0.0219,91315.0,91314.0,0.01095122]
[1764710410162,0.0002,91320.0,91314.0,0.01095122]
[1764710410163,0.0219,91319.0,91318.0,0.21901443]
[1764710410468,0.0219,91315.0,91314.0,0.21902446]
[1764710410875,0.0219,91315.0,91306.0,0.02441218]
[1764710410876,0.01095122,91314.0,91306.0,0.02441218]
[1764710411009,0.0219,91313.0,91312.0,0.22997988]
[1764710412405,0.0229,91313.0,91312.0,0.22997988]
[1764710412897,0.01095158,91311.0,91303.0,0.01095254]
[1764710413105,0.25930932,91312.0,91307.0,0.01095206]
[1764710413311,0.01363,91311.0,91303.0,0.01095254]
[1764710413519,0.01363,91311.0,91307.0,0.01095206]
[1764710413730,0.02458158,91311.0,91307.0,0.01095206]
[1764710413937,0.24361521,91311.0,91307.0,0.01095206]
[1764710414138,0.02458158,91311.0,91306.0,0.01095218]
[1764710414362,0.01363,91311.0,91309.0,0.21903578]
[1764710414572,0.01363,91311.0,91310.0,0.21903405]
[1764710414724,0.01363,91311.0,91308.0,0.01095194]
[1764710414923,0.01363,91311.0,91306.0,0.01095218]
[1764710415129,0.0219,91307.0,91306.0,0.01095218]
[1764710415335,0.01838,91309.0,91307.0,0.21904125]
[1764710415540,0.0219,91308.0,91307.0,0.21904125]
[1764710415735,0.04028,91308.0,91307.0,0.21904125]
[1764710416954,0.0219,91301.0,91253.0,1.09584836]
[1764710417177,0.0219,91295.0,91292.0,0.01095386]
[1764710417478,0.0219,91295.0,91292.0,0.23002888]
[1764710417638,0.0219,91295.0,91292.0,0.01095386]
[1764710417841,0.0219,91295.0,91293.0,0.22763953]
[1764710418086,0.0219,91297.0,91296.0,0.01095338]
[1764710418286,0.0219,91297.0,91296.0,0.23001877]
[1764710419554,0.0219,91303.0,91302.0,0.01095266]
[1764710419889,0.0219,91303.0,91302.0,0.23000591]
[1764710420497,0.0219,91303.0,91302.0,0.01095266]
[1764710420801,0.0219,91303.0,91302.0,0.23000591]
[1764710421041,0.0229,91303.0,91302.0,0.01095266]
[1764710421576,0.0219,91302.0,91301.0,0.21905513]
[1764710423480,0.02294652,91302.0,91301.0,0.21905513]
[1764710423696,0.00104652,91302.0,91301.0,0.26251513]
[1764710424746,4.652e-05,91302.0,91301.0,0.26251513]
[1764710424967,0.00104652,91302.0,91301.0,0.26251513]
[1764710426651,4.652e-05,91302.0,91301.0,0.26351513]
[1764710426858,4.652e-05,91302.0,91301.0,0.26551513]
[1764710433009,4.652e-05,91302.0,91301.0,0.26451513]
[1764710433152,4.652e-05,91302.0,91301.0,0.26251513]
[1764710433583,4.652e-05,91302.0,91301.0,0.26351513]
[1764710434237,4.652e-05,91302.0,91301.0,0.26251513]
[1764710436023,0.02194652,91302.0,91301.0,0.26251513]
[1764710441627,4.652e-05,91302.0,91301.0,0.26251513]
[1764710444782,4.652e-05,91302.0,91301.0,0.21905513]
[1764710445032,4.652e-05,91302.0,91301.0,0.24473513]
[1764710445238,4.652e-05,91302.0,91301.0,0.26138513]
[1764710450687,4.652e-05,91302.0,91301.0,0.26238513]
[1764710460281,4.652e-05,91302.0,91301.0,0.27970513]
[1764710463791,0.00024651,91320.0,91319.0,0.61376247]
[1764710464982,0.00024651,91320.0,91319.0,1.01376247]
[1764710466794,0.00024651,91320.0,91319.0,1.01276247]
[1764710467021,0.00024651,91320.0,91319.0,1.01076247]
[1764710468178,0.00124651,91320.0,91319.0,1.01076247]
[1764710468566,0.00124651,91320.0,91319.0,1.03912259]
[1764710468788,0.00124651,91320.0,91319.0,1.01076247]
[1764710468991,0.00124651,91320.0,91319.0,0.99344247]
[1764710469194,0.00124651,91320.0,91319.0,1.01072247]
[1764710470530,0.00124651,91320.0,91319.0,0.99344247]
[1764710470755,0.00124651,91320.0,91319.0,1.01072247]
[1764710470982,0.00124651,91320.0,91319.0,1.01056247]
[1764710471191,0.00085812,91320.0,91319.0,1.01056247]
[1764710471734,0.00085812,91320.0,91319.0,0.99328247]
[1764710471932,0.00085812,91320.0,91319.0,1.01056247]
[1764710476839,0.00085812,91320.0,91319.0,0.27028247]
[1764710477846,0.00023446,91324.0,91323.0,0.21900287]
[1764710479227,0.00023446,91324.0,91323.0,0.26245287]
[1764710479368,0.00023446,91324.0,91323.0,0.26345287]
[1764710482331,0.00023446,91324.0,91323.0,0.27592287]
[1764710482682,0.00023446,91324.0,91323.0,0.25024287]
[1764710482893,0.00023446,91324.0,91323.0,0.27592287]
[1764710488276,0.00023446,91324.0,91323.0,0.25024287]
[1764710488497,0.02213446,91324.0,91323.0,0.23247287]
[1764710489490,0.02197911,91324.0,91323.0,0.23247287]
[1764710489846,7.911e-05,91324.0,91323.0,0.27592287]
[1764710492979,7.911e-05,91324.0,91323.0,0.27692287]
[1764710493174,7.911e-05,91324.0,91323.0,0.27592287]
[1764710493389,7.911e-05,91324.0,91323.0,0.27892287]
[1764710497080,7.911e-05,91324.0,91323.0,0.60192287]
[1764710498897,0.02381036,91370.0,91369.0,0.21889262]
[1764710499138,0.02381036,91370.0,91369.0,0.27084262]
[1764710499139,0.00058619,91370.0,91369.0,0.27084262]
[1764710500231,0.00058619,91370.0,91369.0,0.28812262]
[1764710500232,0.00158619,91370.0,91369.0,0.28812262]
[1764710500373,0.00158619,91370.0,91369.0,0.27084262]
[1764710500574,0.00058619,91370.0,91369.0,0.27084262]
[1764710501182,0.00058619,91370.0,91369.0,0.27184262]
[1764710501591,0.93644822,93755.0,91369.0,0.27184262]
[1764710501592,0.0002,91390.0,91386.0,0.2463619]
[1764710501793,0.0002,91410.0,91396.0,0.54182795]
[1764710501995,0.0002,91410.0,91396.0,0.64401795]
[1764710501996,0.0002058,91397.0,91396.0,0.64401795]
[1764710502226,0.0002058,91397.0,91394.0,0.22977202]
[1764710502227,0.0002058,91397.0,91395.0,0.21882903]
[1764710502850,0.0002058,91397.0,91393.0,0.01094175]
[1764710503058,0.0002058,91397.0,91391.0,0.01681199]
[1764710503059,0.0002058,91397.0,91391.0,0.00587]
[1764710503321,0.03284235,91388.0,91380.0,0.58683658]
[1764710503530,0.01199,91383.0,91380.0,0.57233989]
[1764710503750,0.0219,91378.0,91375.0,0.01094391]
[1764710503973,0.0219,91378.0,91376.0,0.21887451]
[1764710504403,0.0219,91381.0,91380.0,0.01094331]
[1764710504623,0.03826,91381.0,91380.0,0.22980794]
[1764710504837,0.0399293,91381.0,91380.0,0.22980794]
[1764710505052,0.0219,91380.0,91378.0,0.2298131]
[1764710506373,0.03389,91383.0,91382.0,0.21886148]
[1764710506575,0.0219,91381.0,91378.0,0.01094355]
[1764710506784,0.03826,91381.0,91378.0,0.22981337]
[1764710507009,0.03826,91381.0,91373.0,0.57234073]
[1764710507010,0.01636,91379.0,91373.0,0.57234073]
[1764710507363,0.02482,91380.0,91377.0,0.01094367]
[1764710507502,0.04676851,91380.0,91378.0,0.21887106]
[1764710507700,0.01094391,91375.0,91367.0,0.01094487]
[1764710507901,0.0219,91371.0,91368.0,0.01094475]
[1764710508086,0.0219,91371.0,91369.0,0.21889262]
[1764710508522,0.0219,91371.0,91369.0,0.21889101]
[1764710509103,0.0219,91371.0,91367.0,0.01094487]
[1764710509315,0.0219,91371.0,91368.0,0.01094475]
[1764710509523,0.02482,91370.0,91368.0,0.01094475]
[1764710509716,0.0219,91371.0,91369.0,0.21889148]
[1764710510127,0.0219,91371.0,91368.0,0.22983951]
[1764710510328,0.0219,91371.0,91368.0,0.22983976]
[1764710510531,0.0219,91371.0,91369.0,0.21889153]
[1764710513312,0.03389,91383.0,91378.0,0.01094355]
[1764710513542,0.03389,91383.0,91379.0,0.01094343]
[1764710513543,0.02194851,91382.0,91379.0,0.01094343]
[1764710513754,0.04676851,91382.0,91379.0,0.01094343]
[1764710513945,0.01636,91380.0,91379.0,0.01094343]
[1764710514275,0.04118,91380.0,91379.0,0.01094343]
[1764710514681,0.03389,91383.0,91382.0,0.21886148]
[1764710514905,0.03389,91383.0,91359.0,0.21891529]
[1764710514906,0.01094463,91369.0,91359.0,0.21891529]
[1764710515122,0.01094427,91372.0,91356.0,0.01094618]
[1764710515123,0.0219,91359.0,91358.0,0.2298632]
[1764710515328,0.0219,91351.0,91350.0,0.0109469]
[1764710515529,0.00639,91360.0,91353.0,0.21893096]
[1764710515530,0.0338,91354.0,91353.0,0.21893096]
[1764710516131,0.00011572,91354.0,91353.0,0.62352405]
[1764710516351,0.00011572,91354.0,91353.0,0.60163096]
[1764710516787,0.00011572,91354.0,91353.0,1.00163096]
[1764710517968,0.00011572,91354.0,91353.0,1.00263096]
[1764710519005,0.00011572,91354.0,91353.0,1.00563096]
[1764710520393,0.00011572,91354.0,91353.0,0.98831096]
[1764710520565,0.00011572,91354.0,91353.0,1.00563096]
[1764710520993,0.00011572,91354.0,91353.0,0.98831096]
[1764710521193,0.00011572,91354.0,91353.0,1.00563096]
[1764710521807,0.00099456,91354.0,91353.0,1.00563096]
[1764710523285,0.00099456,91354.0,91353.0,0.98831096]
[1764710523728,0.00099456,91354.0,91353.0,1.00563096]
[1764710528385,0.00099456,91354.0,91353.0,0.98831096]
[1764710528597,0.00099456,91354.0,91353.0,1.00563096]
[1764710530478,0.00099456,91354.0,91353.0,0.26531096]
[1764710530708,0.00099456,91354.0,91353.0,0.22293096]
[1764710531361,0.00099456,91354.0,91353.0,0.003]
[1764710531518,0.00099456,91354.0,91353.0,0.22193096]
[1764710531723,0.00099456,91354.0,91353.0,0.24729108]
[1764710531925,0.04085456,91354.0,91353.0,0.001]
[1764710532130,0.28168312,91354.0,91353.0,0.001]
[1764710532497,0.3677977,91354.0,91353.0,0.001]
[1764710532704,0.6907977,91354.0,91353.0,0.001]
[1764710533254,0.73016034,91354.0,91353.0,0.001]
[1764710533478,0.6907977,91354.0,91353.0,0.001]
[1764710533635,0.62635874,91351.0,91350.0,0.05]
[1764710533837,0.66570033,91351.0,91350.0,0.05]
[1764710534187,0.68981033,91351.0,91350.0,0.05]
[1764710534785,0.69081033,91351.0,91350.0,0.05]
[1764710535208,0.69181033,91351.0,91350.0,0.05]
[1764710535409,0.70913033,91351.0,91350.0,0.05]
[1764710536273,0.49019458,91351.0,91350.0,0.05]
[1764710536637,0.04186,91351.0,91350.0,0.05]
[1764710536842,0.05918,91351.0,91350.0,0.05]
[1764710537043,0.01932,91351.0,91350.0,0.05]
[1764710537325,0.05718,91351.0,91350.0,0.05]
[1764710537483,0.05818,91351.0,91350.0,0.05]
[1764710537684,0.04186,91351.0,91350.0,0.05]
[1764710538246,0.002,91351.0,91350.0,0.05]
[1764710539146,0.00179098,91351.0,91350.0,0.05]
[1764710539765,0.04165098,91351.0,91350.0,0.05]
[1764710539976,0.06355098,91351.0,91350.0,0.05]
[1764710540389,0.06255098,91351.0,91350.0,0.05]
[1764710541227,0.06355098,91351.0,91350.0,0.05]
[1764710542946,0.06355098,91351.0,91350.0,0.26893814]
[1764710543309,0.04165098,91351.0,91350.0,0.26893814]
[1764710543708,0.06355098,91351.0,91350.0,0.26893814]
[1764710545124,0.03944098,91351.0,91350.0,0.26893814]
[1764710545532,0.06355098,91351.0,91350.0,0.05]
[1764710545740,0.06355098,91351.0,91350.0,0.26893814]
[1764710545959,0.06355098,91351.0,91350.0,0.05]
[1764710546915,0.06355098,91351.0,91350.0,0.26893814]
[1764710547268,0.06355098,91351.0,91350.0,0.05]
[1764710547470,0.28248673,91351.0,91350.0,0.05]
[1764710548275,0.06355098,91351.0,91350.0,0.05]
[1764710548524,0.30443524,91351.0,91350.0,0.05]
[1764710548752,0.28248673,91351.0,91350.0,0.05]
[1764710552081,0.29980673,91351.0,91350.0,0.05]
[1764710554669,0.29980673,91351.0,91350.0,0.13]
[1764710555280,0.06355098,91351.0,91350.0,0.13]
[1764710555481,0.02369098,91351.0,91350.0,0.34893814]
[1764710561145,0.00179098,91351.0,91350.0,0.36555814]
[1764710561503,0.00179098,91351.0,91350.0,0.34893814]
[1764710561958,0.00079098,91351.0,91350.0,0.38916814]
[1764710565442,0.00079098,91351.0,91350.0,0.39016814]
[1764710568274,0.00079098,91351.0,91350.0,0.71316814]
[1764710568454,0.00079098,91351.0,91350.0,0.74152826]
[1764710568668,0.00079098,91351.0,91350.0,0.71316814]
[1764710569791,0.00079098,91351.0,91350.0,0.71216814]
[1764710570842,0.00079098,91351.0,91350.0,0.38916814]
[1764710571119,0.02269098,91351.0,91350.0,0.36755814]
[1764710571326,0.02269098,91351.0,91350.0,0.36655814]
[1764710571535,0.02269098,91351.0,91350.0,0.36955814]
[1764710571948,0.02269098,91351.0,91350.0,0.36555814]
[1764710572108,0.02269098,91351.0,91350.0,0.36755814]
[1764710572712,0.02269098,91351.0,91350.0,0.36855814]
[1764710572932,0.02269098,91351.0,91350.0,0.36655814]
[1764710573147,0.02269098,91351.0,91350.0,0.34993814]
[1764710573379,0.02269098,91351.0,91350.0,0.34893814]
[1764710573808,0.02269098,91351.0,91350.0,0.36555814]
[1764710574014,0.02269098,91351.0,91350.0,0.38916814]
[1764710574675,0.02269098,91351.0,91350.0,0.36555814]
[1764710576552,0.02269098,91351.0,91350.0,0.34893814]
[1764710578611,0.07329098,91351.0,91350.0,0.13]
[1764710579631,0.07329098,91351.0,91350.0,0.34893814]
[1764710579833,0.07329098,91351.0,91350.0,0.13]
[1764710580396,0.29222673,91351.0,91350.0,0.13]
[1764710580596,0.07329098,91351.0,91350.0,0.13]
[1764710580996,0.29222673,91351.0,91350.0,0.13]
[1764710582197,0.07329098,91351.0,91350.0,0.13]
[1764710582393,0.29222673,91351.0,91350.0,0.13]
[1764710582964,0.07329098,91351.0,91350.0,0.13]
[1764710583155,0.07329098,91351.0,91350.0,0.34893814]
[1764710584356,0.07329098,91351.0,91350.0,0.13]
[1764710585825,0.29222673,91351.0,91350.0,0.13]
[1764710586902,0.07329098,91351.0,91350.0,0.13]
[1764710587114,0.29222673,91351.0,91350.0,0.13]
[1764710587325,0.07329098,91351.0,91350.0,0.13]
[1764710587531,0.29222673,91351.0,91350.0,0.13]
[1764710590329,0.29206884,91351.0,91350.0,0.14628424]
[1764710591423,0.29206884,91351.0,91350.0,0.13]
[1764710592397,0.29306884,91351.0,91350.0,0.13]
[1764710592888,0.702174,91351.0,91350.0,0.13]
[1764710594492,0.680274,91351.0,91350.0,0.13]
[1764710596301,0.65697101,91351.0,91350.0,0.13]
[1764710602478,0.63965101,91351.0,91350.0,0.13]
[1764710602682,0.65697101,91351.0,91350.0,0.13]
[1764710604457,0.65697101,91351.0,91350.0,0.11228631]
[1764710604663,0.719494,91351.0,91350.0,0.11228631]
[1764710607361,0.74896033,91351.0,91350.0,0.11228631]
[1764710608067,0.74896033,91351.0,91306.0,0.01095218]
[1764710608068,0.21902919,91313.0,91306.0,0.01095218]
[1764710608278,0.0219,91302.0,91301.0,0.01095278]
[1764710608483,0.02336,91302.0,91295.0,0.0109535]
[1764710608645,0.01156,91321.0,91294.0,0.02280362]
[1764710608646,0.0219,91316.0,91315.0,0.0109511]
[1764710608928,0.0219,91316.0,91315.0,0.22997316]
[1764710609283,0.0219,91316.0,91315.0,0.23035935]
[1764710613141,0.0219,91316.0,91315.0,0.29183155]
[1764710613485,0.0219,91316.0,91315.0,0.26992935]
[1764710613911,0.03346,91333.0,91332.0,0.21898129]
[1764710614101,0.02888,91333.0,91323.0,0.56108263]
[1764710614305,0.0219,91325.0,91324.0,0.01095002]
[1764710614516,0.0219,91329.0,91328.0,0.01094954]
[1764710614667,0.0219,91329.0,91328.0,0.22993984]
[1764710614873,0.0611,91329.0,91328.0,0.22993984]
[1764710615074,0.0392,91329.0,91326.0,0.22994522]
[1764710615277,0.0392,91329.0,91322.0,0.2190036]
[1764710615278,0.0219,91320.0,91319.0,0.79104477]
[1764710615504,0.0219,91320.0,91319.0,0.22996214]
[1764710615716,0.0611,91320.0,91319.0,0.22996214]
[1764710616471,0.0611,91320.0,91319.0,0.01095062]
[1764710616650,0.0219,91316.0,91315.0,0.23035933]
[1764710617554,0.03743,91316.0,91315.0,0.00038619]
[1764710617718,0.06172,91316.0,91315.0,0.21940825]
[1764710617916,0.28073966,91316.0,91315.0,0.00038619]
[1764710618115,0.25883966,91316.0,91315.0,0.00038619]
[1764710619380,0.03982,91316.0,91315.0,0.00038619]
[1764710619762,0.06172,91316.0,91315.0,0.21940825]
[1764710619956,0.06172,91316.0,91315.0,0.00038619]
[1764710620162,0.06172,91316.0,91315.0,0.21940825]
[1764710620818,0.06172,91316.0,91315.0,0.00038619]
[1764710621020,0.06172,91316.0,91315.0,0.21940825]
[1764710621506,0.06272,91316.0,91315.0,0.21940825]
[1764710621676,0.06372,91316.0,91315.0,0.21940825]
[1764710622074,0.0239,91316.0,91315.0,0.21940825]
[1764710622934,0.0229,91316.0,91315.0,0.21940825]
[1764710623090,0.0219,91316.0,91315.0,0.21940825]
[1764710623556,0.0219,91316.0,91315.0,0.24131045]
[1764710625904,0.0219,91316.0,91315.0,0.25764045]
[1764710626102,0.0109493,91330.0,91315.0,0.25764045]
[1764710626103,0.02358922,91331.0,91328.0,0.01094954]
[1764710626304,0.01156,91336.0,91335.0,0.2299228]
[1764710626305,0.0219,91336.0,91335.0,0.2299228]
[1764710626724,0.0221523,91338.0,91337.0,0.21896931]
[1764710626937,0.0221523,91338.0,91337.0,0.27131931]
[1764710629096,0.0221523,91338.0,91337.0,0.27231931]
[1764710629293,0.0221523,91338.0,91337.0,0.24830931]
[1764710629650,0.0221523,91338.0,91337.0,0.27231931]
[1764710629854,0.0221523,91338.0,91337.0,0.24830931]
[1764710631888,0.0221523,91338.0,91337.0,0.27231931]
[1764710633310,0.0002523,91338.0,91337.0,0.27231931]
[1764710633850,0.0221523,91338.0,91337.0,0.27231931]
[1764710634186,0.0221523,91338.0,91337.0,0.21996931]
[1764710635433,0.0002523,91338.0,91337.0,0.21996931]
[1764710635660,0.0002523,91338.0,91337.0,0.26030931]
[1764710636447,0.0002523,91338.0,91337.0,0.23629931]
[1764710636635,0.0002523,91338.0,91337.0,0.26030931]
[1764710637953,0.0221523,91338.0,91337.0,0.26030931]
[1764710641015,0.0221523,91338.0,91337.0,0.21996931]
[1764710641535,0.0221523,91338.0,91337.0,0.26030931]
[1764710642821,0.0221523,91338.0,91337.0,0.23629931]
[1764710643024,0.0221523,91338.0,91337.0,0.26030931]
[1764710647302,0.0221523,91338.0,91337.0,0.27191931]
[1764710648212,0.0002523,91338.0,91337.0,0.27191931]
[1764710648656,0.0002523,91338.0,91337.0,0.28838166]
[1764710649829,0.0002523,91338.0,91337.0,0.28738166]
[1764710650500,0.0002523,91338.0,91337.0,0.61038166]
[1764710650879,0.03922,91373.0,91372.0,0.21888543]
[1764710651282,0.04024502,91373.0,91372.0,0.21888543]
[1764710651904,0.0219,91372.0,91369.0,0.02255463]
[1764710652078,0.0219,91372.0,91371.0,0.21888783]
[1764710654167,0.00011576,91373.0,91369.0,0.24144619]
[1764710654421,0.0219,91370.0,91369.0,0.24144619]
[1764710657371,0.0219,91370.0,91369.0,0.24244619]
[1764710657563,0.02283719,91370.0,91369.0,0.24244619]
[1764710659377,0.05121719,91370.0,91369.0,0.21989262]
[1764710659576,0.03455719,91370.0,91369.0,0.21989262]
[1764710659778,0.02283719,91370.0,91369.0,0.21989262]
[1764710660950,0.02283719,91370.0,91369.0,0.21889262]
[1764710662062,0.0219,91364.0,91363.0,0.56099304]
[1764710662266,0.0219,91364.0,91363.0,0.21890699]
[1764710662897,0.00011576,91373.0,91372.0,0.21888543]
[1764710663073,0.02201576,91373.0,91372.0,0.23049543]
[1764710663417,0.00011576,91373.0,91372.0,0.23049543]
[1764710665691,0.00011576,91373.0,91320.0,0.1464]
[1764710665895,0.00011576,91373.0,91348.0,0.01161]
[1764710665896,0.24084054,91349.0,91348.0,0.01161]
[1764710666067,0.0219,91349.0,91348.0,0.01161]
[1764710666476,0.0219,91342.0,91341.0,0.01094798]
[1764710666683,0.0219,91347.0,91346.0,0.22989297]
[1764710667684,0.0219,91347.0,91346.0,0.23027916]
[1764710670718,0.0219,91347.0,91346.0,0.22993916]
[1764710672017,0.0219,91347.0,91346.0,0.27002916]
[1764710672388,0.0219,91347.0,91346.0,0.24582916]
[1764710673212,0.02216365,91347.0,91346.0,0.24582916]
[1764710673932,0.02216365,91347.0,91346.0,0.27002916]
[1764710675565,0.02216365,91347.0,91346.0,0.27102916]
[1764710680423,0.02216365,91347.0,91346.0,0.24682916]
[1764710681756,0.02216365,91347.0,91346.0,0.27127916]
[1764710683472,0.02216365,91347.0,91346.0,0.24682916]
[1764710683871,0.02216365,91347.0,91346.0,0.23093916]
[1764710684298,0.02216365,91347.0,91346.0,0.25538916]
[1764710685187,0.02216365,91347.0,91346.0,0.27154916]
[1764710685695,0.00026365,91347.0,91346.0,0.27154916]
[1764710686867,0.00026365,91347.0,91346.0,0.24709916]
[1764710687403,0.00026365,91347.0,91346.0,0.27154916]
[1764710687517,0.02216365,91347.0,91346.0,0.23093916]
[1764710687724,0.04662365,91347.0,91346.0,0.22033392]
[1764710688175,0.02216365,91347.0,91346.0,0.22033392]
[1764710688761,0.02216365,91347.0,91346.0,0.21933392]
[1764710694642,0.06295365,91347.0,91346.0,0.00038619]
[1764710694849,0.00026365,91347.0,91346.0,0.21933392]
[1764710700508,0.29917899,91347.0,91346.0,0.00038619]
[1764710700844,0.35238465,91347.0,91346.0,0.00038619]
[1764710701050,0.32282595,91347.0,91346.0,0.00038619]
[1764710701644,0.32482595,91347.0,91346.0,0.00038619]
[1764710701853,0.30117899,91347.0,91346.0,0.00038619]
[1764710702085,0.30017899,91347.0,91346.0,0.00038619]
[1764710702308,0.30017899,91347.0,91346.0,0.00016007]
[1764710702309,0.32482595,91347.0,91346.0,0.00016007]
[1764710702514,0.30117899,91347.0,91346.0,0.00016007]
[1764710703140,0.41897348,91347.0,91346.0,0.00016007]
[1764710703352,0.78752044,91347.0,91346.0,0.00016007]
[1764710703559,0.71034894,91347.0,91346.0,0.00016007]
[1764710703838,0.71034894,91347.0,91301.0,0.01204]
[1764710703839,0.0219,91306.0,91301.0,0.01204]
[1764710704059,0.0219,91302.0,91301.0,0.24209413]
[1764710705512,0.0219,91302.0,91301.0,0.24409413]
[1764710705844,0.0219,91302.0,91301.0,0.24509413]
[1764710706040,0.0219,91302.0,91301.0,0.28431413]
[1764710706862,0.0219,91302.0,91301.0,0.01308651]
[1764710707100,0.06251,91302.0,91301.0,4.651e-05]
[1764710707321,0.06251,91302.0,91301.0,0.00204651]
[1764710707525,0.51341926,91302.0,91301.0,0.00204651]
[1764710707735,0.44803299,91302.0,91301.0,0.00204651]
[1764710707938,0.44803299,91302.0,91301.0,4.651e-05]
[1764710708158,0.47158709,91302.0,91301.0,4.651e-05]
[1764710708392,0.47455904,91302.0,91301.0,4.651e-05]
[1764710708601,0.47255904,91302.0,91301.0,4.651e-05]
[1764710708811,0.47355904,91302.0,91301.0,4.651e-05]
[1764710709245,1.48310204,91302.0,91301.0,4.651e-05]
[1764710709464,0.86282704,91302.0,91301.0,4.651e-05]
[1764710709887,0.69991604,91302.0,91301.0,4.651e-05]
[1764710710100,0.62398804,91302.0,91301.0,4.651e-05]
[1764710710307,0.62698804,91302.0,91301.0,4.651e-05]
[1764710710724,0.60246199,91302.0,91301.0,4.651e-05]
[1764710711153,0.60346199,91302.0,91301.0,4.651e-05]
[1764710711353,0.59243199,91302.0,91301.0,4.651e-05]
[1764710711573,0.45203299,91302.0,91301.0,4.651e-05]
[1764710712207,0.0259,91302.0,91301.0,4.651e-05]
[1764710713039,0.0229,91302.0,91301.0,4.651e-05]
[1764710713252,0.0259,91302.0,91301.0,4.651e-05]
[1764710713466,0.03854,91302.0,91301.0,4.651e-05]
[1764710713713,0.03754,91302.0,91301.0,4.651e-05]
[1764710713930,0.0249,91302.0,91301.0,4.651e-05]
[1764710714159,0.0249,91302.0,91301.0,0.01624651]
[1764710714376,0.0249,91302.0,91301.0,0.02752651]
[1764710714581,0.0249,91302.0,91301.0,0.05054651]
[1764710714834,0.0239,91302.0,91301.0,0.01132651]
[1764710715282,0.0249,91302.0,91301.0,0.01132651]
[1764710715521,0.0249,91302.0,91301.0,0.07245207]
[1764710715636,0.0249,91302.0,91301.0,0.04943207]
[1764710716338,0.0249,91302.0,91301.0,4.651e-05]
[1764710716339,0.06351,91302.0,91301.0,4.651e-05]
[1764710716540,0.06251,91302.0,91301.0,4.651e-05]
[1764710716969,0.06351,91302.0,91301.0,4.651e-05]
[1764710717919,0.06451,91302.0,91301.0,4.651e-05]
[1764710719114,0.08645851,91302.0,91301.0,4.651e-05]
[1764710719295,0.09812851,91302.0,91301.0,4.651e-05]
[1764710719509,0.31718176,91302.0,91301.0,4.651e-05]
[1764710719735,0.29523325,91302.0,91301.0,4.651e-05]
[1764710719978,0.07618,91302.0,91301.0,4.651e-05]
[1764710720108,0.09812851,91302.0,91301.0,4.651e-05]
[1764710721576,0.31718176,91302.0,91301.0,4.651e-05]
[1764710721790,0.29523325,91302.0,91301.0,4.651e-05]
[1764710722955,0.07618,91302.0,91301.0,4.651e-05]
[1764710723160,0.31718176,91302.0,91301.0,4.651e-05]
[1764710723339,0.29523325,91302.0,91301.0,4.651e-05]
[1764710723738,0.07618,91302.0,91301.0,4.651e-05]
[1764710724053,0.0239,91302.0,91301.0,0.25832216]
[1764710724384,0.0239,91302.0,91301.0,0.23530216]
[1764710724580,0.0239,91302.0,91301.0,0.25832216]
[1764710726012,0.002,91302.0,91301.0,0.25832216]
[1764710726222,0.001,91302.0,91301.0,0.25832216]
[1764710726628,0.0219,91306.0,91305.0,0.21904605]
[1764710726837,0.0219,91306.0,91305.0,0.23524605]
[1764710727040,0.0219,91306.0,91305.0,0.25826605]
[1764710728083,0.0219,91306.0,91305.0,0.26026605]
[1764710728721,0.02194851,91329.0,91328.0,0.21899088]
[1764710728879,0.22993567,91330.0,91324.0,0.01659002]
[1764710729235,0.0219,91325.0,91324.0,0.22994584]
[1764710730651,0.0229,91325.0,91324.0,0.22994584]
[1764710730991,0.0229,91325.0,91324.0,0.26916584]
[1764710731727,0.0229,91325.0,91324.0,0.24597584]
[1764710732694,0.0219,91325.0,91324.0,0.24597584]
[1764710733809,0.0219,91325.0,91324.0,0.22977584]
[1764710735470,0.0219,91325.0,91324.0,0.26899584]
[1764710735888,0.0219,91325.0,91324.0,0.24597584]
[1764710739163,0.0219,91325.0,91324.0,0.26911584]
[1764710739376,0.0219,91325.0,91324.0,0.27747584]
[1764710740336,0.0219,91325.0,91324.0,0.02456]
[1764710740544,0.0219,91322.0,91321.0,0.22995783]
[1764710741269,0.0219,91320.0,91319.0,0.01095062]
[1764710741472,0.0219,91320.0,91319.0,0.22996309]
[1764710741642,0.22995677,91322.0,91318.0,0.24124368]
[1764710741852,0.0219,91319.0,91318.0,0.24124368]
[1764710743173,0.0219,91319.0,91318.0,0.24224368]
[1764710743837,0.0219,91319.0,91318.0,0.28160368]
[1764710744375,0.0219,91331.0,91330.0,0.2299353]
[1764710744549,0.0219,91333.0,91332.0,0.22992837]
[1764710744769,0.0219,91333.0,91327.0,0.01094966]
[1764710744770,0.01094966,91327.0,91321.0,0.01095038]
[1764710745025,0.0219,91322.0,91321.0,0.22995805]
[1764710745363,0.0219,91322.0,91321.0,0.26931805]
[1764710752356,0.02358036,91337.0,91321.0,0.25836767]
[1764710752592,0.02358036,91337.0,91336.0,0.2351917]
[1764710752593,0.0219,91337.0,91336.0,0.2351917]
[1764710752801,0.0219,91340.0,91339.0,0.2299116]
[1764710753212,0.0219,91340.0,91339.0,0.01094822]
[1764710753390,0.0219,91340.0,91339.0,0.26927273]
[1764710754034,0.0219,91340.0,91339.0,0.03936]
[1764710754237,0.0219,91340.0,91339.0,0.23518451]
[1764710754661,0.0219,91340.0,91338.0,0.21896676]
[1764710754861,0.0219,91339.0,91338.0,0.2299151]
[1764710755212,0.0219,91339.0,91338.0,0.2461351]
[1764710755421,0.27103436,91346.0,91342.0,0.01094786]
[1764710755617,0.0219,91343.0,91342.0,0.22990518]
[1764710755968,0.0219,91344.0,91343.0,0.22990053]
[1764710756142,0.0219,91343.0,91342.0,0.22990518]
[1764710757534,0.0219,91343.0,91342.0,0.26926518]
[1764710758064,0.03945436,91346.0,91345.0,0.21895013]
[1764710758285,0.03945436,91346.0,91345.0,0.23983013]
[1764710758463,0.02213436,91346.0,91345.0,0.26297013]